Workbook

Sheet ORÇAMENTO
A1: <---- NUMERAR SERVIÇOS PARA CPU | C1: Ministério do Desenvolvimento Regional
C2: Companhia de Desenvolvimento dos Vales do São Francisco e do Parnaíba
C3: 1ª Superintendência Regional
B5: OBRA: | C5: PAVIMENTAÇÃO ASFÁLTICA EM CBUQ - ESTRADA PARA MUQUÉM - TRECHO 1 (EST.90 ATÉ EST.145)
B6: DATA: | C6: JULHO DE 2023 | G6: BDI Serviços: | I6: ='BDI SERV'!D31/100 -> 0.2237
B7: PRAZO DE EXECUÇÃO: 120 DIAS | D7: BDI Fornecimento e Transporte - Insumos Asfálticos: | I7: ='BDI FORN'!D31/100 -> 0.15
B8: ITEM | C8: DISCRIMINAÇÃO | E8: UNID. | F8: QUANT. | G8: P. UNITÁRIO | H8: P.UNIT.C/ BDI | I8: P. TOTAL
A9: A | B9: 1 | C9: SERVIÇOS PRELIMINARES | I9: =SUM(I10:I14) -> 95204.06
A10: 1 | B10: 1.1 | C10: MOBILIZAÇÃO E DESMOBILIZAÇÃO | D10: CPU.1 | E10: GL | F10: 1 | G10: =VLOOKUP(A10,CPU!$A$1:$N$4777,9) -> 6180.16 | H10: =VLOOKUP(A10,CPU!$A$1:$N$4777,10) -> 7562.661792 | I10: =ROUND(F10*H10,2) -> 7562.66
A11: 2 | B11: 1.2 | C11: ADMINISTRAÇÃO LOCAL | D11: CPU.2 | E11: GL | F11: 1 | G11: =VLOOKUP(A11,CPU!$A$1:$N$4777,9) -> 63274.88 | H11: =VLOOKUP(A11,CPU!$A$1:$N$4777,10) -> 77429.47066 | I11: =ROUND(F11*H11,2) -> 77429.47
A12: 3 | B12: 1.3 | C12: CANTEIRO DE OBRAS | D12: CPU.3 | E12: GL | F12: 1 | G12: =VLOOKUP(A12,CPU!$A$1:$N$4777,9) -> 4769 | H12: =VLOOKUP(A12,CPU!$A$1:$N$4777,10) -> 5835.8253 | I12: =ROUND(F12*H12,2) -> 5835.83
A13: 4 | B13: 1.4 | C13: PLACA DE OBRA EM CHAPA DE AÇO GALVANIZADO | D13: 103689 | E13: M2 | F13: 2 | G13: =VLOOKUP(A13,CPU!$A$1:$N$4777,9) -> 308.06 | H13: =VLOOKUP(A13,CPU!$A$1:$N$4777,10) -> 376.973022 | I13: =ROUND(F13*H13,2) -> 753.95
A14: 5 | B14: 1.5 | C14: SERVIÇOS TOPOGRÁFICOS PARA PAVIMENTAÇÃO, INCLUSIVE NOTA DE SERVIÇO, ACOMPANHAMENTO E GREIDE | D14: 78472 | E14: M2 | F14: 8000 | G14: =VLOOKUP(A14,CPU!$A$1:$N$4777,9) -> 0.37 | H14: =VLOOKUP(A14,CPU!$A$1:$N$4777,10) -> 0.452769 | I14: =ROUND(F14*H14,2) -> 3622.15
A15: B | B15: 2 | C15: TERRAPLANAGEM E PAVIMENTAÇÃO | I15: =SUM(I16:I23) -> 259155.24
A16: 6 | B16: 2.1 | C16: ESCAVAÇÃO HORIZONTAL EM SOLO DE 1A CATEGORIA | D16: 101116 | E16: M3 | F16: 2800 | G16: =VLOOKUP(A16,CPU!$A$1:$N$4777,9) -> 1.87 | H16: =VLOOKUP(A16,CPU!$A$1:$N$4777,10) -> 2.288319 | I16: =ROUND(F16*H16,2) -> 6407.29
A17: 7 | B17: 2.2 | C17: CARGA, MANOBRA E DESCARGA DE AGREGADOS OU SOLOS EM CAMINHÃO BASCULANTE - DESCARGA LIVRE | D17: 5914351 | E17: M3 | F17: 2800 | G17: =VLOOKUP(A17,CPU!$A$1:$N$4777,9) -> 1.844037099 | H17: =VLOOKUP(A17,CPU!$A$1:$N$4777,10) -> 2.256548198 | I17: =ROUND(F17*H17,2) -> 6318.33
A18: 8 | B18: 2.3 | C18: REGULARIZAÇÃO E COMPACTAÇÃO DE SUBLEITO | D18: 4011209 | E18: M2 | F18: 8000 | G18: =VLOOKUP(A18,CPU!$A$1:$N$4777,9) -> 0.8648084498 | H18: =VLOOKUP(A18,CPU!$A$1:$N$4777,10) -> 1.0582661 | I18: 8466.13
A19: 9 | B19: 2.4 | C19: COMPACTAÇÃO DE ATERROS A 100% DOP PROCTOR NORMAL | D19: 5502978 | E19: M3 | F19: 2000 | G19: =VLOOKUP(A19,CPU!$A$1:$N$4777,9) -> 4.158179667 | H19: =VLOOKUP(A19,CPU!$A$1:$N$4777,10) -> 5.088364459 | I19: =ROUND(F19*H19,2) -> 10176.73
A20: 10 | B20: 2.5 | C20: BASE OU SUB-BASE DE BICA CORRIDA COM BRITA COMERCIAL | D20: 4011276a | E20: M3 | F20: 1600 | G20: =VLOOKUP(A20,CPU!$A$1:$N$4777,9) -> 107.3121111 | H20: =VLOOKUP(A20,CPU!$A$1:$N$4777,10) -> 131.3178303 | I20: 210108.53
A21: 11 | B21: 2.6 | C21: IMPRIMAÇÃO COM ASFALTO DILUIDO CM-30 | D21: 4011351 | E21: M2 | F21: 8000 | G21: =VLOOKUP(A21,CPU!$A$1:$N$4777,9) -> 0.3425 | H21: =VLOOKUP(A21,CPU!$A$1:$N$4777,10) -> 0.41911725 | I21: 3352.94
A22: 12 | B22: 2.7 | C22: PINTURA DE LIGAÇÃO COM EMULSÃO ASFÁLTICA RR-2C | D22: 4011353 | E22: M2 | F22: 6600 | G22: =VLOOKUP(A22,CPU!$A$1:$N$4777,9) -> 0.2569 | H22: =VLOOKUP(A22,CPU!$A$1:$N$4777,10) -> 0.31436853 | I22: 2074.83
A23: 13 | B23: 2.8 | C23: EXECUÇÃO DE PAVIMENTO COM APLICAÇÃO DE CONCRETO ASFÁLTICO USINADO A QUENTE (CBUQ), CAMADA DE ROLAMENTO - EXCLUSIVE FORNECIMENTO E TRANSPORTE | D23: 4011463 | E23: T | F23: 600 | G23: =VLOOKUP(A23,CPU!$A$1:$N$4777,9) -> 16.68500442 | H23: =VLOOKUP(A23,CPU!$A$1:$N$4777,10) -> 20.41743991 | I23: 12250.46
A24: C | B24: 3 | C24: TRANSPORTE DE MATERIAIS | I24: =SUM(I25:I26) -> 14382.98
A25: 14 | B25: 3.1 | C25: TRANSPORTE COM CAMINHÃO BASCULANTE, EM VIA URBANA EM REVESTIMENTO PRIMÁRIO | D25: 5901638 | E25: M3XKM | F25: 7900.002043 | G25: =VLOOKUP(A25,CPU!$A$1:$N$4777,9,0) -> 0.6248522981 | H25: =VLOOKUP(A25,CPU!$A$1:$N$4777,10) -> 0.7646317572 | I25: =ROUND(F25*H25,2) -> 6040.59
A26: 15 | B26: 3.2 | C26: TRANSPORTE COM CAMINHÃO BASCULANTE, EM VIA URBANA PAVIMENTADA | D26: 5901640 | E26: M3XKM | F26: 14500.00421 | G26: =VLOOKUP(A26,CPU!$A$1:$N$4777,9,0) -> 0.47016213 | H26: =VLOOKUP(A26,CPU!$A$1:$N$4777,10,0) -> 0.5753373985 | I26: =ROUND(F26*H26,2) -> 8342.39
A27: E | B27: 4 | C27: OBRAS COMPLEMENTARES E SINALIZAÇÃO | I27: =SUM(I28:I38) -> 80128.95
A28: 17 | B28: 4.1 | C28: DESCIDA D’ÁGUA DE ATERROS EM DEGRAUS - DAD 04 - AREIA E BRITA COMERCIAIS | D28: 2003411 | E28: M2 | F28: 6 | G28: =VLOOKUP(A28,CPU!$A$1:$N$4777,9,0) -> 608.05 | H28: =VLOOKUP(A28,CPU!$A$1:$N$4777,10,0) -> 744.070785 | I28: =ROUND(F28*H28,2) -> 4464.42
A29: 18 | B29: 4.2 | C29: ENRONCAMENTO DE PEDRA ARRUMADA MANUALMENTE - PEDRA DE MÃO COMERCIAL - FORNECIMENTO E ASSENTAMENTO | D29: 1505879 | E29: M3 | F29: 2.4016 | G29: =VLOOKUP(A29,CPU!$A$1:$N$4777,9,0) -> 235.94 | H29: =VLOOKUP(A29,CPU!$A$1:$N$4777,10,0) -> 288.719778 | I29: =ROUND(F29*H29,2) -> 693.39
A30: 19 | B30: 4.3 | C30: CORPO DE BSTC D=0,80M PA-1, INCLUSIVE BERÇO EM CONCRETO CICLÓPICO - AREIA, BRITA E PEDRA DE MÃO COMERCIAIS | D30: 804029 | E30: M | F30: 26 | G30: =VLOOKUP(A30,CPU!$A$1:$N$4777,9,0) -> 624.06 | H30: =VLOOKUP(A30,CPU!$A$1:$N$4777,10,0) -> 763.662222 | I30: =ROUND(F30*H30,2) -> 19855.22
A31: 20 | B31: 4.4 | C31: BOCA DE BSTC D=0,80M, ALAS RETAS - AREIA E BRITA COMERCIAIS | D31: 804385 | E31: UNID | F31: 3 | G31: =VLOOKUP(A31,CPU!$A$1:$N$4777,9,0) -> 2076.52 | H31: =VLOOKUP(A31,CPU!$A$1:$N$4777,10,0) -> 2541.037524 | I31: =ROUND(F31*H31,2) -> 7623.11
A32: 21 | B32: 4.5 | C32: CAIXA DE LIGAÇÃO E PASSAGEM CLP-09, PARA BUEIRO D=0,80M - AREIA E BRITA COMERCIAIS | D32: 2003658 | E32: UNID | F32: 1 | G32: =VLOOKUP(A32,CPU!$A$1:$N$4777,9,0) -> 2427.64 | H32: =VLOOKUP(A32,CPU!$A$1:$N$4777,10,0) -> 2970.703068 | I32: 2970.7
A33: 22 | B33: 4.6 | C33: SAÍDA D'ÁGUA EM TALUDES DE CORTE E ATERRO (SDA E SDC) - AREIA E BRITA COMERCIAIS | D33: RO-46167a | E33: UNID | F33: 2 | G33: =VLOOKUP(A33,CPU!$A$1:$N$4777,9,0) -> 313.69 | H33: =VLOOKUP(A33,CPU!$A$1:$N$4777,10,0) -> 383.862453 | I33: =ROUND(F33*H33,2) -> 767.72
A34: 24 | B34: 4.7 | C34: SARJETA DE CONCRETO EM CORTE - SCC 30/20 | D34: 2003349b | E34: M | F34: 470 | G34: =VLOOKUP(A34,CPU!$A$1:$N$4777,9,0) -> 26.45 | H34: =VLOOKUP(A34,CPU!$A$1:$N$4777,10,0) -> 32.366865 | I34: =ROUND(F34*H34,2) -> 15212.43
A35: 25 | B35: 4.8 | C35: PINTURA DE FAIXA COM TINTA ACRÍLICA - ESPESSURA DE 0,4MM | D35: 5213400 | E35: M2 | F35: 350 | G35: =VLOOKUP(A35,CPU!$A$1:$N$4777,9,0) -> 27.5833851 | H35: =VLOOKUP(A35,CPU!$A$1:$N$4777,10,0) -> 33.75378835 | I35: 11813.83
A36: 26 | B36: 4.9 | C36: PLACA DE REGULAMENTAÇÃO EM AÇO, PELÍCULA RETRORREFLETIVA TIPO I+SI, INCLUSIVE SUPORTE METÁLICO - FORNECIMENTO E IMPLANTAÇÃO | D36: 5213440+ 5213863 | E36: UNID | F36: 20 | G36: =VLOOKUP(A36,CPU!$A$1:$N$4777,9,0) -> 524.74 | H36: =VLOOKUP(A36,CPU!$A$1:$N$4777,10,0) -> 642.124338 | I36: 12842.49
A37: 27 | B37: 4.10 | C37: RECOMPOSIÇÃO PARCIAL DE CERCA COM MOURÃO DE MADEIRA - ARAME E MOURÃO | D37: 4915732+ 4915731 | E37: M | F37: 110 | G37: =VLOOKUP(A37,CPU!$A$1:$N$4777,9,0) -> 22.17 | H37: =VLOOKUP(A37,CPU!$A$1:$N$4777,10,0) -> 27.129429 | I37: =ROUND(F37*H37,2) -> 2984.24
A38: 28 | B38: 4.11 | C38: DESMATAMENTO, DESTOCAMENTO, LIMPEZA DE ÁREA E ESTOCAGEM DO MATERIAL DE LIMPEZA COM ARVORES DE DIÂMETRO ATÉ 0,15M | D38: 5501700 | E38: M2 | F38: 4400 | G38: =VLOOKUP(A38,CPU!$A$1:$N$4777,9,0) -> 0.167413612 | H38: =VLOOKUP(A38,CPU!$A$1:$N$4777,10,0) -> 0.204864037 | I38: =ROUND(F38*H38,2) -> 901.4
A39: F | B39: 5 | C39: TRANSPORTE - MATERIAL ASFÁLTICO (BDI DIFERENCIADO) | I39: =SUM(I40:I41) -> 26168.03
A40: 30 | B40: 5.1 | C40: TRANSPORTE COM CAMINHÃO TANQUE DE TRANSPORTE DE MATERIAL ASFÁLTICO DE 30000 L, EM VIA URBANA PAVIMENTADA | D40: 102331 | E40: TXKM | F40: 6400 | G40: =VLOOKUP(A40,CPU!$A$1:$N$4777,9,0) -> 0.47 | H40: =VLOOKUP(A40,CPU!$A$1:$N$4777,10,0) -> 0.5405 | I40: =ROUND(F40*H40,2) -> 3459.2
A41: 31 | B41: 5.2 | C41: TRANSPORTE MASSA ASFÁLTICA COM CAMINHÃO BASCULANTE, EM VIA URBANA PAVIMENTADA | D41: 5901640a | E41: TXKM | F41: 42000 | G41: =VLOOKUP(A41,CPU!$A$1:$N$4777,9,0) -> 0.47016213 | H41: =VLOOKUP(A41,CPU!$A$1:$N$4777,10,0) -> 0.5406864495 | I41: =ROUND(F41*H41,2) -> 22708.83
A42: G | B42: 6 | C42: FORNECIMENTOS - MATERIAL ASFÁLTICO (BDI DIFERENCIADO) | I42: =SUM(I43:I45) -> 480374.67
A43: 32 | B43: 6.1 | C43: AQUISIÇÃO DE ASFALTO DILUIDO DE PETROLEO CM-30 - EXCLUSIVE TRANSPORTE | D43: CPU.4 | E43: T | F43: 10 | G43: =VLOOKUP(A43,CPU!$A$1:$N$4777,9) -> 4920.43 | H43: =VLOOKUP(A43,CPU!$A$1:$N$4777,10) -> 5658.4945 | I43: =ROUND(F43*H43,2) -> 56584.95
A44: 33 | B44: 6.2 | C44: AQUISIÇÃO DE EMULSAO ASFALTICA CATIONICA RR-1C - EXCLUSIVE TRANSPORTE | D44: CPU.5 | E44: T | F44: 3 | G44: =VLOOKUP(A44,CPU!$A$1:$N$4777,9) -> 2837.6 | H44: =VLOOKUP(A44,CPU!$A$1:$N$4777,10) -> 3263.24 | I44: =ROUND(F44*H44,2) -> 9789.72
A45: 34 | B45: 6.3 | C45: AQUISIÇÃO DE CONCRETO BETUMINOSO USINADO A QUENTE (CBUQ) PARA PAVIMENTACAO ASFALTICA, PADRAO DNIT, FAIXA C, COM CAP 50/70 - EXCLUSIVE TRANSPORTE | D45: CPU.6 | E45: T | F45: 600 | G45: =VLOOKUP(A45,CPU!$A$1:$N$4777,9) -> 600 | H45: =VLOOKUP(A45,CPU!$A$1:$N$4777,10) -> 690 | I45: =ROUND(F45*H45,2) -> 414000
B46: TOTAL GERAL DA OBRA COM BDI | I46: =SUM(I9,I15,I24,I27,I39,I42) -> 955413.93

Sheet CPU
A1: 1 | B1: CODEVASF | E1: COMPOSIÇÃO DE PREÇO UNITÁRIO | I1: =H11 -> 6180.16 | J1: =H13 -> 7562.661792 | K1: BDI CALCULADO: | M1: =ORÇAMENTO!I6 -> 0.2237
B2: OBRA: | C2: =ORÇAMENTO!C5 -> PAVIMENTAÇÃO ASFÁLTICA EM CBUQ - ESTRADA PARA MUQUÉM - TRECHO 1 (EST.90 ATÉ EST.145) | G2: DATA: | H2: =ORÇAMENTO!C6 -> JULHO DE 2023 | K2: BDI DIFERENCIADO: | M2: ='BDI FORN'!D31/100 -> 0.15
B3: SERVIÇO: | C3: =VLOOKUP(A1,ORÇAMENTO!A10:I27,3) -> MOBILIZAÇÃO E DESMOBILIZAÇÃO | E3: Referência: | F3: =VLOOKUP(A1,ORÇAMENTO!A10:I27,4) -> CPU.1 | G3: UNIDADE: | H3: =VLOOKUP(A1,ORÇAMENTO!A10:I27,5) -> GL
B5: TIPO ITEM | C5: CODIGO ITEM | D5: DESCRIÇÃO ITEM | E5: UNIDADE ITEM | F5: COEFICIENTE | G5: PRECO UNITARIO | H5: CUSTO TOTAL
B6: COMPOSICAO | C6: 89876 | D6: CAMINHÃO BASCULANTE 14 M3, COM CAVALO MECÂNICO DE CAPACIDADE MÁXIMA DE TRAÇÃO COMBINADO DE 36000 KG, POTÊNCIA 286 CV, INCLUSIVE SEMIREBOQUE COM CAÇAMBA METÁLICA | E6: CHP DIURNO. | F6: 12 | G6: 287.48 | H6: =ROUNDDOWN(F6*G6,2) -> 3449.76
B7: COMPOSICAO | C7: 89877 | D7: CAMINHÃO BASCULANTE 14 M3, COM CAVALO MECÂNICO DE CAPACIDADE MÁXIMA DE TRAÇÃO COMBINADO DE 36000 KG, POTÊNCIA 286 CV, INCLUSIVE SEMIREBOQUE COM CAÇAMBA METÁLICA | E7: CHI DIURNO. | F7: 6 | G7: 82.59 | H7: =ROUNDDOWN(F7*G7,2) -> 495.54
B8: COMPOSICAO | C8: 5914640 | D8: TRANSPORTE COM CAVALO MECÂNICO COM SEMIRREBOQUE COM CAPACIDADE DE 30 T - RODOVIA PAVIMENTADA | E8: T.KM | F8: 3386 | G8: 0.59 | H8: 1997.74
B9: COMPOSIÇÃO | C9: 88316 | D9: SERVENTE COM ENCARGOS COMPLEMENTARES | E9: H | F9: 12 | G9: 19.76 | H9: 237.12
B10: PRODUÇÃO DA EQUIPE | E10: 1 | F10: CUSTO | H10: =SUM(H6:H9) -> 6180.16
B11: TOTAL | H11: =H10/E10 -> 6180.16 | I11: OK
B12: BDI % | H12: =1+$M$1 -> 1.2237
B13: TOTAL DO SERVIÇO - R$ | H13: =H11*H12 -> 7562.661792
A15: =A1+1 -> 2 | B15: CODEVASF | E15: COMPOSIÇÃO DE PREÇO UNITÁRIO | I15: =H29 -> 63274.88 | J15: =H31 -> 77429.47066
B16: OBRA: | C16: =$C$2 -> PAVIMENTAÇÃO ASFÁLTICA EM CBUQ - ESTRADA PARA MUQUÉM - TRECHO 1 (EST.90 ATÉ EST.145) | G16: DATA: | H16: =$H$2 -> JULHO DE 2023
B17: SERVIÇO: | C17: =VLOOKUP(A15,ORÇAMENTO!$A$10:$I$27,3) -> ADMINISTRAÇÃO LOCAL | E17: SINAPI | F17: CPU | G17: UNIDADE: | H17: =VLOOKUP(A15,ORÇAMENTO!$A$10:$I$27,5) -> GL
B19: TIPO ITEM | C19: CODIGO ITEM | D19: DESCRIÇÃO ITEM | E19: UNIDADE ITEM | F19: COEFICIENTE | G19: PRECO UNITARIO | H19: CUSTO TOTAL
B20: INSUMO | C20: 14250 | D20: ENERGIA ELÉTRICA | E20: kwh | F20: 80 | G20: 0.86 | H20: =ROUNDDOWN(F20*G20,2) -> 68.8
B21: INSUMO | C21: 44480 | D21: TARIFA ÁGUA/ESGOTO | E21: m³ | F21: 6 | G21: 16.27 | H21: 97.62
B22: COTAÇÃO | C22: MERC. | D22: TELEFONE (PLANO CONTROLE) | E22: UNID | F22: 2 | G22: 60 | H22: 120
B23: COMPOSICAO | C23: 90777 | D23: Engenheiro Civil Júnior com encargos complementares | E23: H | F23: 40 | G23: 114.12 | H23: 4564.8
B24: COMPOSICAO | C24: 90776 | D24: Encarregado Geral com encargos complementares | E24: H | F24: 110 | G24: 57.73 | H24: 6350.3
B25: COMPOSICAO | C25: 88321 | D25: Tecnico de Laboratório com encargos complementares | E25: H | F25: 40 | G25: 45.67 | H25: 1826.8
B26: COMPOSICAO | C26: 100309 | D26: Tecnico de Segurança do Trabalho com encargos complementares | E26: H | F26: 40 | G26: 45.93 | H26: =ROUNDDOWN(F26*G26,2) -> 1837.2
B27: COMPOSICAO | C27: 90772 | D27: Auxiliar de escritório com encargos complementares | E27: H | F27: 40 | G27: 23.83 | H27: 953.2
B28: PRODUÇÃO DA EQUIPE | E28: 0.25 | F28: CUSTO | H28: =SUM(H20:H27) -> 15818.72
B29: TOTAL | H29: =H28/E28 -> 63274.88 | I29: OK
B30: BDI % | H30: =1+$M$1 -> 1.2237
B31: TOTAL DO SERVIÇO - R$ | H31: =H29*H30 -> 77429.47066
A33: =A15+1 -> 3 | B33: CODEVASF | E33: COMPOSIÇÃO DE PREÇO UNITÁRIO | I33: =H42 -> 4769 | J33: =H44 -> 5835.8253
B34: OBRA: | C34: =$C$2 -> PAVIMENTAÇÃO ASFÁLTICA EM CBUQ - ESTRADA PARA MUQUÉM - TRECHO 1 (EST.90 ATÉ EST.145) | G34: DATA: | H34: =$H$2 -> JULHO DE 2023
B35: SERVIÇO: | C35: =VLOOKUP(A33,ORÇAMENTO!$A$10:$I$27,3) -> CANTEIRO DE OBRAS | E35: SINAPI | F35: =VLOOKUP(A33,ORÇAMENTO!$A$10:$I$27,4) -> CPU.3 | G35: UNIDADE: | H35: =VLOOKUP(A33,ORÇAMENTO!$A$10:$I$27,5) -> GL
B37: TIPO ITEM | C37: CODIGO ITEM | D37: DESCRIÇÃO ITEM | E37: UNIDADE ITEM | F37: COEFICIENTE | G37: PRECO UNITARIO | H37: CUSTO TOTAL
B38: INSUMO | C38: 10775 | D38: ALUGUEL DE IMÓVEL OU CONTEINER QUE ATENDA AOS REQUISITOS MÍNIMOS PARA INSTALAÇÃO DO CANTEIRO DE OBRAS | E38: MÊS | F38: 4 | G38: 1040 | H38: =ROUNDDOWN(F38*G38,2) -> 4160
B39: INSUMO | C39: 37525 | D39: TELA PLASTICA TECIDA LISTRADA BRANCA E LARANJA, TIPO GUARDA CORPO, EM POLIETILENO MONOFILADO, ROLO 1,20 X 50 M (L X C) | E39: M | F39: 100 | G39: 3.69 | H39: =ROUNDDOWN(F39*G39,2) -> 369
B40: COMPOSICAO | C40: - | D40: PLACA DE SINALIZAÇÃO - "PERIGO - OBRAS A FRENTE" - FORNECIMENTO E MOVIMENTAÇÃO | E40: UNID. | F40: 12 | G40: 20 | H40: 240
B41: PRODUÇÃO DA EQUIPE | E41: 1 | F41: CUSTO | H41: =SUM(H38:H40) -> 4769
B42: TOTAL | H42: =H41/E41 -> 4769 | I42: OK
B43: BDI % | H43: =1+$M$1 -> 1.2237
B44: TOTAL DO SERVIÇO - R$ | H44: =H42*H43 -> 5835.8253
A46: =A33+1 -> 4 | B46: CODEVASF | E46: COMPOSIÇÃO DE PREÇO UNITÁRIO | I46: =H59 -> 308.06 | J46: =H61 -> 376.973022
B47: OBRA: | C47: =$C$2 -> PAVIMENTAÇÃO ASFÁLTICA EM CBUQ - ESTRADA PARA MUQUÉM - TRECHO 1 (EST.90 ATÉ EST.145) | G47: DATA: | H47: =$H$2 -> JULHO DE 2023
B48: SERVIÇO: | C48: =VLOOKUP(A46,ORÇAMENTO!$A$10:$I$27,3) -> PLACA DE OBRA EM CHAPA DE AÇO GALVANIZADO | E48: SINAPI | F48: =VLOOKUP(A46,ORÇAMENTO!$A$10:$I$27,4) -> 103689 | G48: UNIDADE: | H48: =VLOOKUP(A46,ORÇAMENTO!$A$10:$I$27,5) -> M2
B50: TIPO ITEM | C50: CODIGO ITEM | D50: DESCRIÇÃO ITEM | E50: UNIDADE ITEM | F50: COEFICIENTE | G50: PRECO UNITARIO | H50: CUSTO TOTAL
B51: INSUMO | C51: 4509 | D51: SARRAFO *2,5 X 10* CM EM PINUS, MISTA OU EQUIVALENTE DA REGIAO - BRUTA | E51: M | F51: 3,2083000 | G51: 4,39 | H51: =ROUNDDOWN(F51*G51,2) -> 14.08
B52: INSUMO | C52: 4813 | D52: PLACA DE OBRA (PARA CONSTRUCAO CIVIL) EM CHAPA GALVANIZADA *N. 22*, ADESIVADA, DE *2,4 X 1,2* M (SEM POSTES PARA FIXACAO) | E52: M2 | F52: 1,0000000 | G52: 250,00 | H52: 250
B53: INSUMO | C53: 5065 | D53: PREGO DE ACO POLIDO COM CABECA 10 X 10 (7/8 X 17) | E53: KG | F53: 0,0113000 | G53: 38,80 | H53: 0.43
B54: INSUMO | C54: 5069 | D54: PREGO DE ACO POLIDO COM CABECA 17 X 27 (2 1/2 X 11) | E54: KG | F54: 0,0132000 | G54: 20,79 | H54: 0.27
B55: COMPOSICAO | C55: 88262 | D55: CARPINTEIRO DE FORMAS COM ENCARGOS COMPLEMENTARES | E55: H | F55: 0,3729000 | G55: 27,05 | H55: 10.08
B56: COMPOSICAO | C56: 88316 | D56: SERVENTE COM ENCARGOS COMPLEMENTARES | E56: H | F56: 1,1186000 | G56: 19,76 | H56: 22.1
B57: COMPOSICAO | C57: 102234 | D57: PINTURA IMUNIZANTE PARA MADEIRA, 2 DEMÃOS | E57: M2 | F57: 0,5000000 | G57: 22,20 | H57: 11.1
B58: PRODUÇÃO DA EQUIPE | E58: 1 | F58: CUSTO | H58: =SUM(H51:H57) -> 308.06
B59: TOTAL | H59: =H58/E58 -> 308.06 | I59: OK
B60: BDI % | H60: =1+$M$1 -> 1.2237
B61: TOTAL DO SERVIÇO - R$ | H61: =H59*H60 -> 376.973022
A63: =A46+1 -> 5 | B63: CODEVASF | E63: COMPOSIÇÃO DE PREÇO UNITÁRIO | I63: =H74 -> 0.37 | J63: =H76 -> 0.452769
B64: OBRA: | C64: =$C$2 -> PAVIMENTAÇÃO ASFÁLTICA EM CBUQ - ESTRADA PARA MUQUÉM - TRECHO 1 (EST.90 ATÉ EST.145) | G64: DATA: | H64: =$H$2 -> JULHO DE 2023
B65: SERVIÇO: | C65: =VLOOKUP(A63,ORÇAMENTO!$A$10:$I$27,3) -> SERVIÇOS TOPOGRÁFICOS PARA PAVIMENTAÇÃO, INCLUSIVE NOTA DE SERVIÇO, ACOMPANHAMENTO E GREIDE | E65: SINAPI | F65: =VLOOKUP(A63,ORÇAMENTO!$A$10:$I$27,4) -> 78472 | G65: UNIDADE: | H65: =VLOOKUP(A63,ORÇAMENTO!$A$10:$I$27,5) -> M2
B67: TIPO ITEM | C67: CODIGO ITEM | D67: DESCRIÇÃO ITEM | E67: UNIDADE ITEM | F67: COEFICIENTE | G67: PRECO UNITARIO | H67: CUSTO TOTAL
B68: COMPOSICAO | C68: 88253 | D68: AUXILIAR DE TOPÓGRAFO COM ENCARGOS COMPLEMENTARES | E68: H | F68: 0.0025 | G68: 20.32 | H68: =ROUNDDOWN(F68*G68,2) -> 0.05
B69: COMPOSICAO | C69: 88288 | D69: NIVELADOR COM ENCARGOS COMPLEMENTARES | E69: H | F69: 0.0025 | G69: 25.4 | H69: =ROUNDDOWN(F69*G69,2) -> 0.06
B70: COMPOSICAO | C70: 88316 | D70: SERVENTE COM ENCARGOS COMPLEMENTARES | E70: H | F70: 0.0075 | G70: 19.76 | H70: 0.14
B71: COMPOSICAO | C71: 88597 | D71: DESENHISTA DETALHISTA COM ENCARGOS COMPLEMENTARES | E71: H | F71: 0.002 | G71: 27.95 | H71: 0.05
B72: COMPOSICAO | C72: 92145 | D72: CAMINHONETE CABINE SIMPLES COM MOTOR 1.6 FLEX, CÂMBIO MANUAL, POTÊNCIA 101/104 CV, 2 PORTAS | E72: CHP | F72: 0.001 | G72: 72.79 | H72: 0.07
B73: PRODUÇÃO DA EQUIPE | E73: 1 | F73: CUSTO | H73: =SUM(H68:H72) -> 0.37
B74: TOTAL | H74: =H73/E73 -> 0.37 | I74: OK
B75: BDI % | H75: =1+$M$1 -> 1.2237
B76: TOTAL DO SERVIÇO - R$ | H76: =H74*H75 -> 0.452769
A78: =A63+1 -> 6 | B78: CODEVASF | E78: COMPOSIÇÃO DE PREÇO UNITÁRIO | I78: =H87 -> 1.87 | J78: =H89 -> 2.288319
B79: OBRA: | C79: =$C$2 -> PAVIMENTAÇÃO ASFÁLTICA EM CBUQ - ESTRADA PARA MUQUÉM - TRECHO 1 (EST.90 ATÉ EST.145) | G79: DATA: | H79: =$H$2 -> JULHO DE 2023 | J79: =H90 -> 0
B80: SERVIÇO: | C80: =VLOOKUP(A78,ORÇAMENTO!$A$10:$I$27,3) -> ESCAVAÇÃO HORIZONTAL EM SOLO DE 1A CATEGORIA | E80: SINAPI | F80: =VLOOKUP(A78,ORÇAMENTO!$A$10:$I$27,4) -> 101116 | G80: UNIDADE: | H80: =VLOOKUP(A78,ORÇAMENTO!$A$10:$I$27,5) -> M3
B82: TIPO ITEM | C82: CODIGO ITEM | D82: DESCRIÇÃO ITEM | E82: UNIDADE ITEM | F82: COEFICIENTE | G82: PRECO UNITARIO | H82: CUSTO TOTAL
B83: COMPOSICAO | C83: 5847 | D83: TRATOR DE ESTEIRAS, POTÊNCIA 170 HP, PESO OPERACIONAL 19 T, CAÇAMBA 5,2 M3 | E83: CHP | F83: 0,0048000 | G83: 217,11 | H83: =ROUNDDOWN(F83*G83,2) -> 1.04
B84: COMPOSICAO | C84: 5849 | D84: TRATOR DE ESTEIRAS, POTÊNCIA 170 HP, PESO OPERACIONAL 19 T, CAÇAMBA 5,2 M3 | E84: CHI | F84: 0,0082000 | G84: 71,35 | H84: 0.58
B85: COMPOSICAO | C85: 88316 | D85: SERVENTE COM ENCARGOS COMPLEMENTARES | E85: H | F85: 0,0131000 | G85: 19,76 | H85: 0.25
B86: PRODUÇÃO DA EQUIPE | E86: 1 | F86: CUSTO | H86: =SUM(H83:H85) -> 1.87
B87: TOTAL | H87: =H86/E86 -> 1.87 | I87: OK
B88: BDI % | H88: =1+$M$1 -> 1.2237
B89: TOTAL DO SERVIÇO - R$ | H89: =H87*H88 -> 2.288319
A91: 7 | B91: CODEVASF | E91: COMPOSIÇÃO DE PREÇO UNITÁRIO | I91: =H101 -> 1.844037099 | J91: =H103 -> 2.256548198
B92: OBRA: | C92: =$C$2 -> PAVIMENTAÇÃO ASFÁLTICA EM CBUQ - ESTRADA PARA MUQUÉM - TRECHO 1 (EST.90 ATÉ EST.145) | G92: DATA: | H92: =$H$2 -> JULHO DE 2023
B93: SERVIÇO: | C93: =VLOOKUP(A91,ORÇAMENTO!$A$10:$I$27,3) -> CARGA, MANOBRA E DESCARGA DE AGREGADOS OU SOLOS EM CAMINHÃO BASCULANTE - DESCARGA LIVRE | E93: SICRO | F93: =VLOOKUP(A91,ORÇAMENTO!$A$10:$I$27,4) -> 5914351 | G93: UNIDADE: | H93: =VLOOKUP(A91,ORÇAMENTO!$A$10:$I$27,5) -> M3
B95: TIPO ITEM | C95: CODIGO ITEM | D95: DESCRIÇÃO ITEM | E95: UNIDADE ITEM | F95: COEFICIENTE | G95: PRECO UNITARIO | H95: CUSTO TOTAL
B96: COMPOSICAO | C96: 5940 | D96: PÁ CARREGADEIRA SOBRE RODAS, POTÊNCIA LÍQUIDA 128 HP, CAPACIDADE DA CAÇAMBA 1,7 A 2,8 M3, PESO OPERACIONAL 11632 KG | E96: CHP | F96: =3*0.77 -> 2.31 | G96: 203.1 | H96: =ROUNDDOWN(F96*G96,2) -> 469.16
B97: COMPOSICAO | C97: 5942 | D97: PÁ CARREGADEIRA SOBRE RODAS, POTÊNCIA LÍQUIDA 128 HP, CAPACIDADE DA CAÇAMBA 1,7 A 2,8 M3, PESO OPERACIONAL 11632 KG | E97: CHI | F97: =3*0.23 -> 0.69 | G97: 83.73 | H97: 57.77
B98: COMPOSICAO | C98: 89883 | D98: CAMINHÃO BASCULANTE 18 M3, COM CAVALO MECÂNICO DE CAPACIDADE MÁXIMA DE TRAÇÃO COMBINADO DE 45000 KG, POTÊNCIA 330 CV, INCLUSIVE SEMIREBOQUE COM CAÇAMBA METÁLICA | E98: CHP | F98: 1 | G98: 316.09 | H98: 316.09
B99: COMPOSICAO | C99: 89884 | D99: CAMINHÃO BASCULANTE 18 M3, COM CAVALO MECÂNICO DE CAPACIDADE MÁXIMA DE TRAÇÃO COMBINADO DE 45000 KG, POTÊNCIA 330 CV, INCLUSIVE SEMIREBOQUE COM CAÇAMBA METÁLICA | E99: CHI | F99: 0 | G99: 86.09 | H99: 0
B100: PRODUÇÃO DA EQUIPE | E100: 457.16 | F100: CUSTO | H100: =SUM(H96:H99) -> 843.02
B101: TOTAL | H101: =H100/E100 -> 1.844037099 | I101: OK
B102: BDI % | H102: =1+$M$1 -> 1.2237
B103: TOTAL DO SERVIÇO - R$ | H103: =H101*H102 -> 2.256548198
A105: 8 | B105: CODEVASF | E105: COMPOSIÇÃO DE PREÇO UNITÁRIO | I105: =H123 -> 0.8648084498 | J105: =H125 -> 1.0582661
B106: OBRA: | C106: =$C$2 -> PAVIMENTAÇÃO ASFÁLTICA EM CBUQ - ESTRADA PARA MUQUÉM - TRECHO 1 (EST.90 ATÉ EST.145) | G106: DATA: | H106: =$H$2 -> JULHO DE 2023
B107: SERVIÇO: | C107: =VLOOKUP(A105,ORÇAMENTO!$A$10:$I$27,3) -> REGULARIZAÇÃO E COMPACTAÇÃO DE SUBLEITO | E107: SICRO | F107: =VLOOKUP(A105,ORÇAMENTO!$A$10:$I$27,4) -> 4011209 | G107: UNIDADE: | H107: =VLOOKUP(A105,ORÇAMENTO!$A$10:$I$27,5) -> M2
B109: TIPO ITEM | C109: CODIGO ITEM | D109: DESCRIÇÃO ITEM | E109: UNIDADE ITEM | F109: COEFICIENTE | G109: PRECO UNITARIO | H109: CUSTO TOTAL
B110: COMPOSICAO | C110: 5901 | D110: CAMINHÃO PIPA 10.000 L TRUCADO, PESO BRUTO TOTAL 23.000 KG, CARGA ÚTIL MÁXIMA 15.935 KG, DISTÂNCIA ENTRE EIXOS 4,8 M, POTÊNCIA 230 CV, INCLUSIVE TANQUE DE AÇO PARA TRANSPORTE DE ÁGUA | E110: CHP | F110: =2*0.51 -> 1.02 | G110: 267.67 | H110: =ROUNDDOWN(F110*G110,2) -> 273.02
B111: COMPOSICAO | C111: 5903 | D111: CAMINHÃO PIPA 10.000 L TRUCADO, PESO BRUTO TOTAL 23.000 KG, CARGA ÚTIL MÁXIMA 15.935 KG, DISTÂNCIA ENTRE EIXOS 4,8 M, POTÊNCIA 230 CV, INCLUSIVE TANQUE DE AÇO PARA TRANSPORTE DE ÁGUA | E111: CHI | F111: =2*0.49 -> 0.98 | G111: 67.09 | H111: 65.74
B112: COMPOSICAO | C112: 5689 | D112: GRADE DE DISCO CONTROLE REMOTO REBOCÁVEL, COM 24 DISCOS 24 X 6 MM COM PNEUS | E112: CHP | F112: 0.69 | G112: 6.74 | H112: 4.65
B113: COMPOSICAO | C113: 5690 | D113: GRADE DE DISCO CONTROLE REMOTO REBOCÁVEL, COM 24 DISCOS 24 X 6 MM COM PNEUS | E113: CHI | F113: 0.31 | G113: 4.19 | H113: 1.29
B114: COMPOSICAO | C114: 5932 | D114: MOTONIVELADORA POTÊNCIA BÁSICA LÍQUIDA (PRIMEIRA MARCHA) 125 HP, PESO BRUTO 13032 KG, LARGURA DA LÂMINA DE 3,7 M | E114: CHP | F114: 0.71 | G114: 236.38 | H114: 167.82
B115: COMPOSICAO | C115: 5934 | D115: MOTONIVELADORA POTÊNCIA BÁSICA LÍQUIDA (PRIMEIRA MARCHA) 125 HP, PESO BRUTO 13032 KG, LARGURA DA LÂMINA DE 3,7 M | E115: CHI | F115: 0.29 | G115: 92.27 | H115: 26.75
B116: COMPOSICAO | C116: 73436 | D116: ROLO COMPACTADOR VIBRATÓRIO PÉ DE CARNEIRO PARA SOLOS, POTÊNCIA 80 HP, PESO OPERACIONAL SEM/COM LASTRO 7,4 / 8,8 T, LARGURA DE TRABALHO 1,68 M | E116: CHP | F116: 1 | G116: 192.91 | H116: 192.91
B117: COMPOSICAO | C117: 93244 | D117: ROLO COMPACTADOR VIBRATÓRIO PÉ DE CARNEIRO PARA SOLOS, POTÊNCIA 80 HP, PESO OPERACIONAL SEM/COM LASTRO 7,4 / 8,8 T, LARGURA DE TRABALHO 1,68 M | E117: CHI | F117: 0 | G117: 60.72 | H117: =ROUNDDOWN(F117*G117,2) -> 0
B118: COMPOSICAO | C118: 88316 | D118: SERVENTE COM ENCARGOS COMPLEMENTARES | E118: H | F118: 1 | G118: 19.76 | H118: 19.76
B119: COMPOSICAO | C119: 96463 | D119: ROLO COMPACTADOR DE PNEUS, ESTATICO, PRESSAO VARIAVEL, POTENCIA 110 HP, PESO SEM/COM LASTRO 10,8/27 T, LARGURA ROLAGEM 2,30 M | E119: CHP | F119: 0.96 | G119: 197.38 | H119: 189.48
B120: COMPOSICAO | C120: 96464 | D120: ROLO COMPACTADOR DE PNEUS, ESTATICO, PRESSAO VARIAVEL, POTENCIA 110 HP, PESO SEM/COM LASTRO 10,8/27 T, LARGURA ROLAGEM 2,30 M | E120: CHI | F120: 0.04 | G120: 82.85 | H120: 3.31
D121: FATOR DE INTERFERÊNCIA CLIMÁTICO | E121: FIT | H121: =0.0223*E122 -> 25.005659
B122: PRODUÇÃO DA EQUIPE | E122: 1121.33 | F122: CUSTO | H122: =SUM(H110:H121) -> 969.735659
B123: TOTAL | H123: =H122/E122 -> 0.8648084498 | I123: OK
B124: BDI % | H124: =1+$M$1 -> 1.2237
B125: TOTAL DO SERVIÇO - R$ | H125: =H123*H124 -> 1.0582661
A127: 9 | B127: CODEVASF | E127: COMPOSIÇÃO DE PREÇO UNITÁRIO | I127: =H145 -> 4.158179667 | J127: =H147 -> 5.088364459
B128: OBRA: | C128: =$C$2 -> PAVIMENTAÇÃO ASFÁLTICA EM CBUQ - ESTRADA PARA MUQUÉM - TRECHO 1 (EST.90 ATÉ EST.145) | G128: DATA: | H128: =$H$2 -> JULHO DE 2023
B129: SERVIÇO: | C129: =VLOOKUP(A127,ORÇAMENTO!$A$10:$I$27,3) -> COMPACTAÇÃO DE ATERROS A 100% DOP PROCTOR NORMAL | E129: SICRO | F129: =VLOOKUP(A127,ORÇAMENTO!$A$10:$I$27,4) -> 5502978 | G129: UNIDADE: | H129: =VLOOKUP(A127,ORÇAMENTO!$A$10:$I$27,5) -> M3
B131: TIPO ITEM | C131: CODIGO ITEM | D131: DESCRIÇÃO ITEM | E131: UNIDADE ITEM | F131: COEFICIENTE | G131: PRECO UNITARIO | H131: CUSTO TOTAL
B132: COMPOSICAO | C132: 73436 | D132: ROLO COMPACTADOR VIBRATÓRIO PÉ DE CARNEIRO PARA SOLOS, POTÊNCIA 80 HP, PESO OPERACIONAL SEM/COM LASTRO 7,4 / 8,8 T, LARGURA DE TRABALHO 1,68 M | E132: CHP | F132: 1 | G132: =G116 -> 192.91 | H132: =ROUNDDOWN(F132*G132,2) -> 192.91
B133: COMPOSICAO | C133: 93244 | D133: ROLO COMPACTADOR VIBRATÓRIO PÉ DE CARNEIRO PARA SOLOS, POTÊNCIA 80 HP, PESO OPERACIONAL SEM/COM LASTRO 7,4 / 8,8 T, LARGURA DE TRABALHO 1,68 M | E133: CHI | F133: 0 | G133: =G117 -> 60.72 | H133: 0
B134: COMPOSICAO | C134: 5901 | D134: CAMINHÃO PIPA 10.000 L TRUCADO, PESO BRUTO TOTAL 23.000 KG, CARGA ÚTIL MÁXIMA 15.935 KG, DISTÂNCIA ENTRE EIXOS 4,8 M, POTÊNCIA 230 CV, INCLUSIVE TANQUE DE AÇO PARA TRANSPORTE DE ÁGUA | E134: CHP | F134: 0.9 | G134: =G110 -> 267.67 | H134: 240.9
B135: COMPOSICAO | C135: 5903 | D135: CAMINHÃO PIPA 10.000 L TRUCADO, PESO BRUTO TOTAL 23.000 KG, CARGA ÚTIL MÁXIMA 15.935 KG, DISTÂNCIA ENTRE EIXOS 4,8 M, POTÊNCIA 230 CV, INCLUSIVE TANQUE DE AÇO PARA TRANSPORTE DE ÁGUA | E135: CHI | F135: 0.1 | G135: =G111 -> 67.09 | H135: 6.7
B136: COMPOSICAO | C136: 5932 | D136: MOTONIVELADORA POTÊNCIA BÁSICA LÍQUIDA (PRIMEIRA MARCHA) 125 HP, PESO BRUTO 13032 KG, LARGURA DA LÂMINA DE 3,7 M | E136: CHP | F136: 0.29 | G136: =G114 -> 236.38 | H136: 68.55
B137: COMPOSICAO | C137: 5934 | D137: MOTONIVELADORA POTÊNCIA BÁSICA LÍQUIDA (PRIMEIRA MARCHA) 125 HP, PESO BRUTO 13032 KG, LARGURA DA LÂMINA DE 3,7 M | E137: CHI | F137: 0.71 | G137: =G115 -> 92.27 | H137: 65.51
B138: COMPOSICAO | C138: 88316 | D138: SERVENTE COM ENCARGOS COMPLEMENTARES | E138: H | F138: 1 | G138: =G118 -> 19.76 | H138: 19.76
B139: COMPOSICAO | C139: 89035 | D139: TRATOR DE PNEUS, POTÊNCIA 85 CV, TRAÇÃO 4X4 | E139: CHP | F139: 0.52 | G139: 117.41 | H139: 61.05
B140: COMPOSICAO | C140: 89036 | D140: TRATOR DE PNEUS, POTÊNCIA 85 CV, TRAÇÃO 4X4 | E140: CHI | F140: 0.48 | G140: 46.92 | H140: 22.52
B141: COMPOSICAO | C141: 5689 | D141: GRADE DE DISCO CONTROLE REMOTO REBOCÁVEL, COM 24 DISCOS 24 X 6 MM COM PNEUS | E141: CHP | F141: 0.52 | G141: =G112 -> 6.74 | H141: 3.5
B142: COMPOSICAO | C142: 5690 | D142: GRADE DE DISCO CONTROLE REMOTO REBOCÁVEL, COM 24 DISCOS 24 X 6 MM COM PNEUS | E142: CHI | F142: 0.48 | G142: =G113 -> 4.19 | H142: 2.01
D143: FATOR DE INTERFERÊNCIA CLIMÁTICO | E143: FIT | H143: =0.0951*E144 -> 15.99582
B144: PRODUÇÃO DA EQUIPE | E144: 168.2 | F144: CUSTO | H144: =SUM(H132:H143) -> 699.40582
B145: TOTAL | H145: =H144/E144 -> 4.158179667 | I145: OK
B146: BDI % | H146: =1+$M$1 -> 1.2237
B147: TOTAL DO SERVIÇO - R$ | H147: =H145*H146 -> 5.088364459
A149: 10 | B149: CODEVASF | E149: COMPOSIÇÃO DE PREÇO UNITÁRIO | I149: =H167 -> 107.3121111 | J149: =H169 -> 131.3178303
B150: OBRA: | C150: =$C$2 -> PAVIMENTAÇÃO ASFÁLTICA EM CBUQ - ESTRADA PARA MUQUÉM - TRECHO 1 (EST.90 ATÉ EST.145) | G150: DATA: | H150: =$H$2 -> JULHO DE 2023
B151: SERVIÇO: | C151: =VLOOKUP(A149,ORÇAMENTO!$A$10:$I$27,3) -> BASE OU SUB-BASE DE BICA CORRIDA COM BRITA COMERCIAL | E151: SICRO | F151: =VLOOKUP(A149,ORÇAMENTO!$A$10:$I$27,4) -> 4011276a | G151: UNIDADE: | H151: =VLOOKUP(A149,ORÇAMENTO!$A$10:$I$27,5) -> M3
B153: TIPO ITEM | C153: CODIGO ITEM | D153: DESCRIÇÃO ITEM | E153: UNIDADE ITEM | F153: COEFICIENTE | G153: PRECO UNITARIO | H153: CUSTO TOTAL
B154: COMPOSICAO | C154: 5684 | D154: ROLO COMPACTADOR VIBRATÓRIO DE UM CILINDRO AÇO LISO, POTÊNCIA 80 HP, PESO OPERACIONAL MÁXIMO 8,1 T, IMPACTO DINÂMICO 16,15 / 9,5 T, LARGURA DE TRABALHO 1,68 M | E154: CHP | F154: 0.52 | G154: 142.77 | H154: =ROUNDDOWN(F154*G154,2) -> 74.24
B155: COMPOSICAO | C155: 5685 | D155: ROLO COMPACTADOR VIBRATÓRIO DE UM CILINDRO AÇO LISO, POTÊNCIA 80 HP, PESO OPERACIONAL MÁXIMO 8,1 T, IMPACTO DINÂMICO 16,15 / 9,5 T, LARGURA DE TRABALHO 1,68 M | E155: CHI | F155: 0.48 | G155: 59.3 | H155: 28.46
B156: COMPOSICAO | C156: 5901 | D156: CAMINHÃO PIPA 10.000 L TRUCADO, PESO BRUTO TOTAL 23.000 KG, CARGA ÚTIL MÁXIMA 15.935 KG, DISTÂNCIA ENTRE EIXOS 4,8 M, POTÊNCIA 230 CV, INCLUSIVE TANQUE DE AÇO PARA TRANSPORTE DE ÁGUA | E156: CHP | F156: 0.34 | G156: =G134 -> 267.67 | H156: 91
B157: COMPOSICAO | C157: 5903 | D157: CAMINHÃO PIPA 10.000 L TRUCADO, PESO BRUTO TOTAL 23.000 KG, CARGA ÚTIL MÁXIMA 15.935 KG, DISTÂNCIA ENTRE EIXOS 4,8 M, POTÊNCIA 230 CV, INCLUSIVE TANQUE DE AÇO PARA TRANSPORTE DE ÁGUA | E157: CHI | F157: 0.66 | G157: =G135 -> 67.09 | H157: 44.27
B158: COMPOSICAO | C158: 95127 | D158: DISTRIBUIDOR DE AGREGADOS AUTOPROPELIDO, A DIESEL, POTÊNCIA 176CV | E158: CHP | F158: 1 | G158: 180.85 | H158: 180.85
B159: COMPOSICAO | C159: 95128 | D159: DISTRIBUIDOR DE AGREGADOS AUTOPROPELIDO, A DIESEL, POTÊNCIA 176CV | E159: CHI | F159: 0 | G159: 47.35 | H159: 0
B160: COMPOSICAO | C160: 88316 | D160: SERVENTE COM ENCARGOS COMPLEMENTARES | E160: H | F160: 1 | G160: 19.76 | H160: 19.76
B161: COMPOSICAO | C161: 96463 | D161: ROLO COMPACTADOR DE PNEUS, ESTATICO, PRESSAO VARIAVEL, POTENCIA 110 HP, PESO SEM/COM LASTRO 10,8/27 T, LARGURA DE ROLAGEM 2,30 M | E161: CHP | F161: 0.65 | G161: =G119 -> 197.38 | H161: 128.29
B162: COMPOSICAO | C162: 96464 | D162: ROLO COMPACTADOR DE PNEUS, ESTATICO, PRESSAO VARIAVEL, POTENCIA 110 HP, PESO SEM/COM LASTRO 10,8/27 T, LARGURA DE ROLAGEM 2,30 M | E162: CHI | F162: 0.35 | G162: =G120 -> 82.85 | H162: 28.99
B163: INSUMO | C163: 4748 | D163: PEDRA BRITADA OU BICA CORRIDA, NAO CLASSIFICADA (POSTO PEDREIRA/FORNECEDOR,SEM FRETE) | E163: M3 | F163: =1.02*113.18 -> 115.4436 | G163: 100 | H163: =ROUNDDOWN(F163*G163,2) -> 11544.36
D164: FATOR DE INTERFERÊNCIA CLIMÁTICO | E164: FIT | H164: =0.0474*E166 -> 5.364732
B166: PRODUÇÃO DA EQUIPE | E166: 113.18 | F166: CUSTO | H166: =SUM(H154:H165) -> 12145.58473
B167: TOTAL | H167: =H166/E166 -> 107.3121111 | I167: OK
B168: BDI % | H168: =1+$M$1 -> 1.2237
B169: TOTAL DO SERVIÇO - R$ | H169: =H167*H168 -> 131.3178303
A171: 11 | B171: CODEVASF | E171: COMPOSIÇÃO DE PREÇO UNITÁRIO | I171: =H184 -> 0.3425 | J171: =H186 -> 0.41911725
B172: OBRA: | C172: =$C$2 -> PAVIMENTAÇÃO ASFÁLTICA EM CBUQ - ESTRADA PARA MUQUÉM - TRECHO 1 (EST.90 ATÉ EST.145) | G172: DATA: | H172: =$H$2 -> JULHO DE 2023
B173: SERVIÇO: | C173: =VLOOKUP(A171,ORÇAMENTO!$A$10:$I$27,3) -> IMPRIMAÇÃO COM ASFALTO DILUIDO CM-30 | E173: SICRO | F173: =VLOOKUP(A171,ORÇAMENTO!$A$10:$I$27,4) -> 4011351 | G173: UNIDADE: | H173: =VLOOKUP(A171,ORÇAMENTO!$A$10:$I$27,5) -> M2
B175: TIPO ITEM | C175: CODIGO ITEM | D175: DESCRIÇÃO ITEM | E175: UNIDADE ITEM | F175: COEFICIENTE | G175: PRECO UNITARIO | H175: CUSTO TOTAL
B176: INSUMO | D176: ASFALTO DILUIDO DE PETROLEO CM-30 (FORNECIMENTO COM BDI DIFERENCIADO) | E176: KG | F176: 1,2000000 | H176: =ROUNDDOWN(F176*G176,2) -> 0
B177: COMPOSICAO | C177: 83362 | D177: ESPARGIDOR DE ASFALTO PRESSURIZADO, TANQUE 6 M3 COM ISOLAÇÃO TÉRMICA, AQUECIDO COM 2 MAÇARICOS, COM BARRA ESPARGIDORA 3,60 M, MONTADO SOBRE CAMINHÃO TOCO, PBT 14.300 KG, POTÊNCIA 185 CV | E177: CHP | F177: 1 | G177: 234.41 | H177: 234.41
B178: COMPOSICAO | C178: 91486 | D178: ESPARGIDOR DE ASFALTO PRESSURIZADO, TANQUE 6 M3 COM ISOLAÇÃO TÉRMICA, AQUECIDO COM 2 MAÇARICOS, COM BARRA ESPARGIDORA 3,60 M, MONTADO SOBRE CAMINHÃO TOCO, PBT 14.300 KG, POTÊNCIA 185 CV | E178: CHI | F178: 0 | G178: 66.12 | H178: =ROUNDDOWN(F178*G178,2) -> 0
B179: COMPOSICAO | C179: 88316 | D179: SERVENTE COM ENCARGOS COMPLEMENTARES | E179: H | F179: 2 | G179: 19.76 | H179: 39.52
B180: COMPOSICAO | C180: E9558 | D180: TANQUE DE ASFALTO ESTACIONÁRIO COM SERPENTINA, CAPACIDADE 30.000 L | E180: CHP | F180: =2*1 -> 2 | G180: 54.9625 | H180: 109.92
B181: COMPOSICAO | C181: E9558 | D181: TANQUE DE ASFALTO ESTACIONÁRIO COM SERPENTINA, CAPACIDADE 30.000 L | E181: CHI | F181: 0 | G181: 37.5434 | H181: 0
D182: FATOR DE INTERFERÊNCIA CLIMÁTICA | E182: FIC | H182: =0.0013*E183 -> 1.4625
B183: PRODUÇÃO DA EQUIPE | E183: 1125 | F183: CUSTO | H183: =SUM(H176:H182) -> 385.3125
B184: TOTAL | H184: =H183/E183 -> 0.3425 | I184: OK
B185: BDI % | H185: =1+$M$1 -> 1.2237
B186: TOTAL DO SERVIÇO - R$ | H186: =H184*H185 -> 0.41911725
A188: 12 | B188: CODEVASF | E188: COMPOSIÇÃO DE PREÇO UNITÁRIO | I188: =H201 -> 0.2569 | J188: =H203 -> 0.31436853
B189: OBRA: | C189: =$C$2 -> PAVIMENTAÇÃO ASFÁLTICA EM CBUQ - ESTRADA PARA MUQUÉM - TRECHO 1 (EST.90 ATÉ EST.145) | G189: DATA: | H189: =$H$2 -> JULHO DE 2023
B190: SERVIÇO: | C190: =VLOOKUP(A188,ORÇAMENTO!$A$10:$I$27,3) -> PINTURA DE LIGAÇÃO COM EMULSÃO ASFÁLTICA RR-2C | E190: SICRO | F190: =VLOOKUP(A188,ORÇAMENTO!$A$10:$I$27,4) -> 4011353 | G190: UNIDADE: | H190: =VLOOKUP(A188,ORÇAMENTO!$A$10:$I$27,5) -> M2
B192: TIPO ITEM | C192: CODIGO ITEM | D192: DESCRIÇÃO ITEM | E192: UNIDADE ITEM | F192: COEFICIENTE | G192: PRECO UNITARIO | H192: CUSTO TOTAL
B193: INSUMO | D193: EMULSAO ASFALTICA CATIONICA RR-2C PARA USO EM PAVIMENTACAO ASFALTICA (COLETADO CAIXA NA ANP ACRESCIDO DE ICMS) | E193: KG | F193: 0,4500000 | H193: =ROUNDDOWN(F193*G193,2) -> 0
B194: COMPOSICAO | C194: 83362 | D194: ESPARGIDOR DE ASFALTO PRESSURIZADO, TANQUE 6 M3 COM ISOLAÇÃO TÉRMICA, AQUECIDO COM 2 MAÇARICOS, COM BARRA ESPARGIDORA 3,60 M, MONTADO SOBRE CAMINHÃO TOCO, PBT 14.300 KG, POTÊNCIA 185 CV | E194: CHP | F194: 1 | G194: =G177 -> 234.41 | H194: 234.41
B195: COMPOSICAO | C195: 91486 | D195: ESPARGIDOR DE ASFALTO PRESSURIZADO, TANQUE 6 M3 COM ISOLAÇÃO TÉRMICA, AQUECIDO COM 2 MAÇARICOS, COM BARRA ESPARGIDORA 3,60 M, MONTADO SOBRE CAMINHÃO TOCO, PBT 14.300 KG, POTÊNCIA 185 CV | E195: CHI | F195: 0 | G195: =G178 -> 66.12 | H195: 0
B196: COMPOSICAO | C196: 88316 | D196: SERVENTE COM ENCARGOS COMPLEMENTARES | E196: H | F196: 2 | G196: 19.76 | H196: 39.52
B197: COMPOSICAO | C197: E9558 | D197: TANQUE DE ASFALTO ESTACIONÁRIO COM SERPENTINA, CAPACIDADE 30.000 L | E197: CHP | F197: =2*1 -> 2 | G197: 54.9625 | H197: 109.92
B198: COMPOSICAO | C198: E9558 | D198: TANQUE DE ASFALTO ESTACIONÁRIO COM SERPENTINA, CAPACIDADE 30.000 L | E198: CHI | F198: 0 | G198: 37.5434 | H198: 0
D199: FATOR DE INTERFERÊNCIA CLIMÁTICA | E199: FIC | H199: =0.001*E200 -> 1.5
B200: PRODUÇÃO DA EQUIPE | E200: 1500 | F200: CUSTO | H200: =SUM(H193:H199) -> 385.35
B201: TOTAL | H201: =H200/E200 -> 0.2569 | I201: OK
B202: BDI % | H202: =1+$M$1 -> 1.2237
B203: TOTAL DO SERVIÇO - R$ | H203: =H201*H202 -> 0.31436853
A205: 13 | B205: CODEVASF | E205: COMPOSIÇÃO DE PREÇO UNITÁRIO | I205: =H221 -> 16.68500442 | J205: =H223 -> 20.41743991
B206: OBRA: | C206: =$C$2 -> PAVIMENTAÇÃO ASFÁLTICA EM CBUQ - ESTRADA PARA MUQUÉM - TRECHO 1 (EST.90 ATÉ EST.145) | G206: DATA: | H206: =$H$2 -> JULHO DE 2023
B207: SERVIÇO: | C207: =VLOOKUP(A205,ORÇAMENTO!$A$10:$I$27,3) -> EXECUÇÃO DE PAVIMENTO COM APLICAÇÃO DE CONCRETO ASFÁLTICO USINADO A QUENTE (CBUQ), CAMADA DE ROLAMENTO - EXCLUSIVE FORNECIMENTO E TRANSPORTE | E207: SICRO | F207: =VLOOKUP(A205,ORÇAMENTO!$A$10:$I$27,4) -> 4011463 | G207: UNIDADE: | H207: =VLOOKUP(A205,ORÇAMENTO!$A$10:$I$27,5) -> T
B209: TIPO ITEM | C209: CODIGO ITEM | D209: DESCRIÇÃO ITEM | E209: UNIDADE ITEM | F209: COEFICIENTE | G209: PRECO UNITARIO | H209: CUSTO TOTAL
B210: INSUMO | C210: 1518 | D210: CONCRETO BETUMINOSO USINADO A QUENTE (CBUQ) PARA PAVIMENTACAO ASFALTICA, PADRAO DNIT, FAIXA C, COM CAP 50/70 - FORNECIMENTO COM BDI DIFERENCIADO | E210: T | F210: 2,5548000 | H210: =ROUNDDOWN(F210*G210,2) -> 0
B211: COMPOSICAO | C211: 5835 | D211: VIBROACABADORA DE ASFALTO SOBRE ESTEIRAS, LARGURA DE PAVIMENTAÇÃO 1,90 M A 5,30 M, POTÊNCIA 105 HP CAPACIDADE 450 T/H | E211: CHP | F211: 1 | G211: 357.51 | H211: 357.51
B212: COMPOSICAO | C212: 5837 | D212: VIBROACABADORA DE ASFALTO SOBRE ESTEIRAS, LARGURA DE PAVIMENTAÇÃO 1,90 M A 5,30 M, POTÊNCIA 105 HP CAPACIDADE 450 T/H | E212: CHI | F212: 0 | G212: 139.09 | H212: 0
B213: COMPOSICAO | C213: 88314 | D213: RASTELEIRO COM ENCARGOS COMPLEMENTARES | E213: H | F213: 8 | G213: 21.21 | H213: 169.68
B214: COMPOSICAO | C214: 95631 | D214: ROLO COMPACTADOR VIBRATORIO TANDEM, ACO LISO, POTENCIA 125 HP, PESO SEM/COM LASTRO 10,20/11,65 T, LARGURA DE TRABALHO 1,73 M | E214: CHP | F214: 0.82 | G214: 204.82 | H214: 167.95
B215: COMPOSICAO | C215: 95632 | D215: ROLO COMPACTADOR VIBRATORIO TANDEM, ACO LISO, POTENCIA 125 HP, PESO SEM/COM LASTRO 10,20/11,65 T, LARGURA DE TRABALHO 1,73 M | E215: CHI | F215: 0.18 | G215: 77.02 | H215: 13.86
B216: COMPOSICAO | C216: 96463 | D216: ROLO COMPACTADOR DE PNEUS, ESTATICO, PRESSAO VARIAVEL, POTENCIA 110 HP, PESO SEM/COM LASTRO 10,8/27 T, LARGURA DE ROLAGEM 2,30 M | E216: CHP | F216: 0.71 | G216: =G161 -> 197.38 | H216: 140.13
B217: COMPOSICAO | C217: 96464 | D217: ROLO COMPACTADOR DE PNEUS, ESTATICO, PRESSAO VARIAVEL, POTENCIA 110 HP, PESO SEM/COM LASTRO 10,8/27 T, LARGURA DE ROLAGEM 2,30 M | E217: CHI | F217: 0.29 | G217: =G162 -> 82.85 | H217: 24.02
B218: COMPOSICAO | C218: 5914649 | D218: CARGA, MANOBRA E DESCARGA DE MISTURA BETUMINOSA A QUENTE EM CAMINHÃO BASCULANTE - CARGA EM USINA, DESCARGA EM VIBROACABADORA | E218: T | F218: =1.02*E220 -> 101.592 | G218: 7.73 | H218: 785.3
D219: FATOR DE INTERFERÊNCIA CLIMÁTICA | E219: FIC | H219: =0.0339*E220 -> 3.37644
B220: PRODUÇÃO DA EQUIPE | E220: 99.6 | F220: CUSTO | H220: =SUM(H210:H219) -> 1661.82644
B221: TOTAL | H221: =H220/E220 -> 16.68500442 | I221: OK
B222: BDI % | H222: =1+$M$1 -> 1.2237
B223: TOTAL DO SERVIÇO - R$ | H223: =H221*H222 -> 20.41743991
A225: 14 | B225: CODEVASF | E225: COMPOSIÇÃO DE PREÇO UNITÁRIO | I225: =H234 -> 0.6248522981 | J225: =H236 -> 0.7646317572
B226: OBRA: | C226: =$C$2 -> PAVIMENTAÇÃO ASFÁLTICA EM CBUQ - ESTRADA PARA MUQUÉM - TRECHO 1 (EST.90 ATÉ EST.145) | G226: DATA: | H226: =$H$2 -> JULHO DE 2023
B227: SERVIÇO: | C227: =VLOOKUP(A225,ORÇAMENTO!$A$10:$I$27,3) -> TRANSPORTE COM CAMINHÃO BASCULANTE, EM VIA URBANA EM REVESTIMENTO PRIMÁRIO | E227: SICRO | F227: =VLOOKUP(A225,ORÇAMENTO!$A$10:$I$27,4) -> 5901638 | G227: UNIDADE: | H227: =VLOOKUP(A225,ORÇAMENTO!$A$10:$I$27,5) -> M3XKM
... 213 more rows

Sheet BDI SERV
B1: DETALHAMENTO DO BDI - SERVIÇOS
B4: Item | C4: Descrição dos Serviços | D4: % | E4: %
D5: PV | E5: CD
B7: 1 | C7: ADMINISTRAÇÃO CENTRAL | E7: 4.01
B8: 1.1 | C8: ESCRITÓRIO CENTRAL
B9: 1.2 | C9: VIAGENS
B10: 1.3 | C10: OUTROS
B12: 2 | C12: IMPOSTOS E TAXAS | D12: =SUM(D13:D16) -> 6.15 | E12: =SUM(E13:E16) -> 7.69
B13: 2.1 | C13: ISS (*) | D13: 2.5 | E13: =ROUND(D13*1.2515,2) -> 3.13
B14: 2.2 | C14: PIS | D14: 0.65 | E14: 0.81
B15: 2.3 | C15: Cofins | D15: 3 | E15: 3.75
B16: 2.4 | C16: CONTRIBUIÇÃO PREVIDENCIÁRIA SOBRE A RENDA BRUTA | D16: 0 | E16: 0
B18: 3 | C18: TAXA DE RISCO | E18: =SUM(E19:E22) -> 1.16
B19: 3.1 | C19: SEGURO | E19: 0.2
B20: 3.2 | C20: RISCO | E20: 0.56
B21: 3.3 | C21: GARANTIA | E21: 0.4
B23: 4 | C23: DESPESAS FINANCEIRAS | E23: 1.11
B25: 5 | C25: LUCRO | E25: 8
C27: BDI - CALCULADO | E27: =ROUND((((1+(E7+E18)/100)*(1+E23/100)*(1+E25/100)/(1-D12/100)-1)*100),2) -> 22.37
A29: BDI = ((1+((AC+S+R+G)/100))x(1+DF/100)x(1+L/100)/(1-I/100)-1)*100
B31: BDI (CALCULADO): | D31: =ROUND((((1+((E7+E18)/100))*(1+E23/100)*(1+E25/100))/(1-D12/100)-1)*100,2) -> 22.37 | E31: %
A33: (*) ISS CONFORME LEI MUNICIPAL Nº 1241 / 2017 - DECLARAÇÃO EM ANEXO, APLICANDO-SE A DEDUÇÃO PREVISTA NO §12 DO ART. 120 REFERENTE AOS MATERIAIS (50% SEM NECESSIDADE DE COMPROVAÇÃO)
A37: BDI EM CONFORMIDADE COM OS ACÓRDÃOS Nº 2369/2011 e ACÓRDÃO Nº 2.622/2013 - TCU - PLENÁRIO

Sheet BDI FORN
B1: DETALHAMENTO DO BDI - FORNECIMENTO (MATERIAL ASFÁLTICO)
B4: Item | C4: Descrição dos Serviços | D4: % | E4: %
D5: PV | E5: CD
B7: 1 | C7: ADMINISTRAÇÃO CENTRAL | E7: 3.72
B8: 1.1 | C8: ESCRITÓRIO CENTRAL
B9: 1.2 | C9: VIAGENS
B10: 1.3 | C10: OUTROS
B12: 2 | C12: IMPOSTOS E TAXAS | D12: =SUM(D13:D16) -> 3.65 | E12: =SUM(E13:E16) -> 4.56
B13: 2.1 | C13: ISS (*) | E13: =ROUND(D13*1.2515,2) -> 0
B14: 2.2 | C14: PIS | D14: 0.65 | E14: 0.81
B15: 2.3 | C15: Cofins | D15: 3 | E15: 3.75
B16: 2.4 | C16: CONTRIBUIÇÃO PREVIDENCIÁRIA SOBRE A RENDA BRUTA | D16: 0 | E16: 0
B18: 3 | C18: TAXA DE RISCO | E18: =SUM(E19:E22) -> 0.82
B19: 3.1 | C19: SEGURO | E19: 0.16
B20: 3.2 | C20: RISCO | E20: 0.5
B21: 3.3 | C21: GARANTIA | E21: 0.16
B23: 4 | C23: DESPESAS FINANCEIRAS | E23: 0.94
B25: 5 | C25: LUCRO | E25: 5
C27: BDI - CALCULADO | E27: =ROUND((((1+(E7+E18)/100)*(1+E23/100)*(1+E25/100)/(1-D12/100)-1)*100),2) -> 15
A29: BDI = ((1+((AC+S+R+G)/100))x(1+DF/100)x(1+L/100)/(1-I/100)-1)*100
B31: BDI (CALCULADO): | D31: =ROUND((((1+((E7+E18)/100))*(1+E23/100)*(1+E25/100))/(1-D12/100)-1)*100,2) -> 15 | E31: %
A37: BDI EM CONFORMIDADE COM OS ACÓRDÃOS Nº 2369/2011 e ACÓRDÃO Nº 2.622/2013 - TCU - PLENÁRIO

Sheet CRONOGRAMA
B1: CRONOGRAMA FÍSICO-FINANCEIRO
B2: OBRA: | C2: =ORÇAMENTO!C5 -> PAVIMENTAÇÃO ASFÁLTICA EM CBUQ - ESTRADA PARA MUQUÉM - TRECHO 1 (EST.90 ATÉ EST.145) | F2: VALOR: | G2: =ORÇAMENTO!I46 -> 955413.93
F3: PRAZO: | G3: 120 DIAS
B5: ITEM | C5: ETAPAS/DESCRIÇAO | D5: FISICO/ FINANCEIRO | E5: TOTAL ETAPAS | F5: MÊS 1 | G5: MÊS 2 | H5: MÊS 3 | I5: MÊS 4 | J5: TOTAL
A6: A | B6: =VLOOKUP(A6,ORÇAMENTO!$A$9:$I$46,2) -> 1 | C6: =VLOOKUP(A6,ORÇAMENTO!$A$9:$I$46,3) -> SERVIÇOS PRELIMINARES | D6: FISICO | E6: =ROUND(E7/$G$2,4) -> 0.0996 | F6: 0.2 | G6: 0.3 | H6: 0.3 | I6: 0.2 | J6: =SUM(F6:I6) -> 1
D7: FINANCEIRO | E7: =ORÇAMENTO!I9 -> 95204.06 | F7: =ROUND($E$7*F6,2) -> 19040.81 | G7: =ROUND($E$7*G6,2) -> 28561.22 | H7: 28561.22 | I7: =ROUND($E$7*I6,2) -> 19040.81 | J7: 95204.06
A8: B | B8: =VLOOKUP(A8,ORÇAMENTO!$A$9:$I$46,2) -> 2 | C8: =VLOOKUP(A8,ORÇAMENTO!$A$9:$I$46,3) -> TERRAPLANAGEM E PAVIMENTAÇÃO | D8: FISICO | E8: =ROUND(E9/$G$2,4) -> 0.2712 | F8: 0.1 | G8: 0.4 | H8: 0.4 | I8: 0.1 | J8: 1
D9: FINANCEIRO | E9: =ORÇAMENTO!I15 -> 259155.24 | F9: =ROUND($E$9*F8,2) -> 25915.52 | G9: =ROUND($E$9*G8,2) -> 103662.1 | H9: 103662.1 | I9: =ROUND($E$9*I8,2) -> 25915.52 | J9: 259155.24
A10: C | B10: =VLOOKUP(A10,ORÇAMENTO!$A$9:$I$46,2) -> 3 | C10: =VLOOKUP(A10,ORÇAMENTO!$A$9:$I$46,3) -> TRANSPORTE DE MATERIAIS | D10: FISICO | E10: =ROUND(E11/$G$2,4) -> 0.0151 | F10: 0.1 | G10: 0.4 | H10: 0.4 | I10: 0.1 | J10: 1
D11: FINANCEIRO | E11: =ORÇAMENTO!I24 -> 14382.98 | F11: =ROUND($E$11*F10,2) -> 1438.3 | G11: =ROUND($E$11*G10,2) -> 5753.19 | H11: 5753.19 | I11: =ROUND($E$11*I10,2) -> 1438.3 | J11: 14382.98
A12: E | B12: =VLOOKUP(A12,ORÇAMENTO!$A$9:$I$46,2) -> 4 | C12: =VLOOKUP(A12,ORÇAMENTO!$A$9:$I$46,3) -> OBRAS COMPLEMENTARES E SINALIZAÇÃO | D12: FISICO | E12: =ROUND(E13/$G$2,4) -> 0.0839 | F12: 0.25 | G12: 0.25 | H12: 0.25 | I12: 0.25 | J12: 1
D13: FINANCEIRO | E13: =ORÇAMENTO!I27 -> 80128.95 | F13: =ROUND($E$13*F12,2) -> 20032.24 | G13: =ROUND($E$13*G12,2) -> 20032.24 | H13: 20032.24 | I13: =ROUND($E$13*I12,2) -> 20032.24 | J13: 80128.96
A14: F | B14: =VLOOKUP(A14,ORÇAMENTO!$A$9:$I$46,2) -> 5 | C14: =VLOOKUP(A14,ORÇAMENTO!$A$9:$I$46,3) -> TRANSPORTE - MATERIAL ASFÁLTICO (BDI DIFERENCIADO) | D14: FISICO | E14: =ROUND(E15/$G$2,4) -> 0.0274 | F14: 0.1 | G14: 0.4 | H14: 0.4 | I14: 0.1 | J14: 1
D15: FINANCEIRO | E15: =ORÇAMENTO!I39 -> 26168.03 | F15: =ROUND($E$15*F14,2) -> 2616.8 | G15: =ROUND($E$15*G14,2) -> 10467.21 | H15: =ROUND($E$15*H14,2) -> 10467.21 | I15: =ROUND($E$15*I14,2) -> 2616.8 | J15: 26168.02
A16: G | B16: =VLOOKUP(A16,ORÇAMENTO!$A$9:$I$46,2) -> 6 | C16: =VLOOKUP(A16,ORÇAMENTO!$A$9:$I$46,3) -> FORNECIMENTOS - MATERIAL ASFÁLTICO (BDI DIFERENCIADO) | D16: FISICO | E16: =ROUND(E17/$G$2,4) -> 0.5028 | F16: 0.1 | G16: 0.4 | H16: 0.4 | I16: 0.1 | J16: 1
D17: FINANCEIRO | E17: =ORÇAMENTO!I42 -> 480374.67 | F17: =ROUND($E$17*F16,2) -> 48037.47 | G17: =ROUND($E$17*G16,2) -> 192149.87 | H17: =ROUND($E$17*H16,2) -> 192149.87 | I17: =ROUND($E$17*I16,2) -> 48037.47 | J17: 480374.68
B18: TOTAL | D18: FISICO | E18: =SUM(F18:I18) -> 1.00000001 | F18: =F19/E19 -> 0.1225449371 | G18: =G19/E19 -> 0.3774550681 | H18: =H19/E19 -> 0.3774550681 | I18: =I19/E19 -> 0.1225449371 | J18: 1.00000001
D19: FINANCEIRO | E19: =E11+E9+E7+E13+E17+E15 -> 955413.93 | F19: =F11+F9+F7+F13+F17+F15 -> 117081.14 | G19: 360625.83 | H19: 360625.83 | I19: 117081.14 | J19: =SUM(F19:I19)-0.01 -> 955413.93
B21: OBSERVAÇÕES:
